[Event "*** Titled Tuesday Blitz"]
[Site "Chess.com"]
[Date "2021.04.27"]
[Round "7"]
[White "LileKoridze"]
[Black "rachidhuilda"]
[Result "1-0"]
[WhiteElo "2412"]
[BlackElo "2266"]
[TimeControl "180+1"]
[EndTime "11:14:42 PDT"]
[Termination "LileKoridze won by checkmate"]

1. d4 {[%clk 0:03:00.9]} 1... Nf6 {[%clk 0:02:06.7]} 2. c4 {[%clk 0:03:00]} 2...
c5 {[%clk 0:02:06.7]} 3. d5 {[%clk 0:03:00.1]} 3... b5 {[%clk 0:02:06.8]} 4.
cxb5 {[%clk 0:03:00.1]} 4... a6 {[%clk 0:02:07.1]} 5. bxa6 {[%clk 0:03:00.8]}
5... g6 {[%clk 0:02:06.9]} 6. Nc3 {[%clk 0:03:01.3]} 6... Bg7 {[%clk 0:02:07]}
7. e4 {[%clk 0:03:02]} 7... O-O {[%clk 0:02:06.4]} 8. Nf3 {[%clk 0:03:02.6]}
8... Qa5 {[%clk 0:02:05.9]} 9. Bd2 {[%clk 0:03:02.3]} 9... Bxa6 {[%clk
0:01:58.9]} 10. Be2 {[%clk 0:03:01.5]} 10... Qb4 {[%clk 0:01:58.6]} 11. Bxa6
{[%clk 0:02:52.9]} 11... Nxa6 {[%clk 0:01:49.2]} 12. Qc2 {[%clk 0:02:51.6]}
12... Rfb8 {[%clk 0:01:38]} 13. Rb1 {[%clk 0:02:50.2]} 13... Qb7 {[%clk
0:01:24.9]} 14. a3 {[%clk 0:02:47.6]} 14... Qb3 {[%clk 0:01:20.7]} 15. Qxb3
{[%clk 0:02:46.3]} 15... Rxb3 {[%clk 0:01:20.7]} 16. O-O {[%clk 0:02:47]} 16...
Rab8 {[%clk 0:01:20.7]} 17. e5 {[%clk 0:02:38.5]} 17... Ng4 {[%clk 0:01:17.9]}
18. Bf4 {[%clk 0:02:19.5]} 18... Rxb2 {[%clk 0:01:11.2]} 19. h3 {[%clk
0:02:18.6]} 19... Rxb1 {[%clk 0:00:57.1]} 20. Nxb1 {[%clk 0:02:18.3]} 20... Nh6
{[%clk 0:00:55.4]} 21. Nbd2 {[%clk 0:02:18.6]} 21... Nf5 {[%clk 0:00:54.8]} 22.
Nc4 {[%clk 0:02:15.1]} 22... Rb3 {[%clk 0:00:48.2]} 23. Rd1 {[%clk 0:02:03.3]}
23... Rc3 {[%clk 0:00:47]} 24. Nb6 {[%clk 0:02:02]} 24... d6 {[%clk 0:00:44.1]}
25. exd6 {[%clk 0:01:59]} 25... Nxd6 {[%clk 0:00:36.8]} 26. Re1 {[%clk
0:01:57.5]} 26... Bf6 {[%clk 0:00:36]} 27. a4 {[%clk 0:01:54.8]} 27... Rb3
{[%clk 0:00:33.6]} 28. Nd7 {[%clk 0:01:53.5]} 28... Kg7 {[%clk 0:00:20.9]} 29.
Nxf6 {[%clk 0:01:44.9]} 29... Kxf6 {[%clk 0:00:21.1]} 30. Be5+ {[%clk
0:01:44.8]} 30... Kf5 {[%clk 0:00:17.6]} 31. g4# {[%clk 0:01:44.2]} 1-0

[Event "*** Titled Tuesday Blitz"]
[Site "Chess.com"]
[Date "2021.04.27"]
[Round "7"]
[White "mirochka"]
[Black "jraosam"]
[Result "0-1"]
[WhiteElo "2204"]
[BlackElo "1873"]
[TimeControl "180+1"]
[EndTime "11:14:47 PDT"]
[Termination "jraosam won on time"]

1. e4 {[%clk 0:03:00.9]} 1... c5 {[%clk 0:02:59.6]} 2. d4 {[%clk 0:03:00.2]}
2... cxd4 {[%clk 0:02:59]} 3. c3 {[%clk 0:03:00.4]} 3... dxc3 {[%clk 0:02:59.9]}
4. Nxc3 {[%clk 0:03:00.7]} 4... Nc6 {[%clk 0:03:00.8]} 5. Nf3 {[%clk 0:03:00]}
5... d6 {[%clk 0:02:59.9]} 6. Bc4 {[%clk 0:02:59.3]} 6... g6 {[%clk 0:02:59.6]}
7. O-O {[%clk 0:01:54.3]} 7... Bg7 {[%clk 0:02:57.3]} 8. Qb3 {[%clk 0:01:54.7]}
8... Na5 {[%clk 0:02:55.6]} 9. Bb5+ {[%clk 0:01:28.9]} 9... Bd7 {[%clk 0:02:51]}
10. Qa4 {[%clk 0:01:26.6]} 10... Nc6 {[%clk 0:02:48.8]} 11. Ng5 {[%clk
0:00:59.6]} 11... Nf6 {[%clk 0:02:45.3]} 12. f4 {[%clk 0:00:56]} 12... O-O
{[%clk 0:02:40.8]} 13. Nd5 {[%clk 0:00:40.4]} 13... Nxd5 {[%clk 0:02:36.1]} 14.
exd5 {[%clk 0:00:40.4]} 14... Nb8 {[%clk 0:02:31.4]} 15. Bxd7 {[%clk 0:00:18.9]}
15... Qxd7 {[%clk 0:02:32.3]} 16. Qb3 {[%clk 0:00:16.8]} 16... h6 {[%clk
0:02:27.6]} 17. Nf3 {[%clk 0:00:15.2]} 17... Na6 {[%clk 0:02:14.7]} 18. Be3
{[%clk 0:00:15.1]} 18... Nc5 {[%clk 0:02:12.9]} 19. Qc2 {[%clk 0:00:13.2]} 19...
Rac8 {[%clk 0:02:11.9]} 20. Qe2 {[%clk 0:00:11.4]} 20... Qf5 {[%clk 0:02:10.5]}
21. Rad1 {[%clk 0:00:10.1]} 21... Qf6 {[%clk 0:02:08.6]} 22. b4 {[%clk
0:00:09.8]} 22... Na4 {[%clk 0:02:06.8]} 23. Bd4 {[%clk 0:00:10]} 23... Qxf4
{[%clk 0:02:05.1]} 24. Bxg7 {[%clk 0:00:09.4]} 24... Kxg7 {[%clk 0:02:06]} 25.
Nd4 {[%clk 0:00:08.8]} 25... Qe5 {[%clk 0:02:05.7]} 26. Qf3 {[%clk 0:00:08.2]}
26... Nc3 {[%clk 0:02:04.2]} 27. Rfe1 {[%clk 0:00:08.3]} 27... Qxd5 {[%clk
0:02:02.9]} 28. Nf5+ {[%clk 0:00:06]} 28... Qxf5 {[%clk 0:02:02.5]} 29. Rd5
{[%clk 0:00:06.9]} 29... Qxd5 {[%clk 0:02:01.5]} 0-1

[Event "*** Titled Tuesday Blitz"]
[Site "Chess.com"]
[Date "2021.04.27"]
[Round "7"]
[White "Natalya_Buksa"]
[Black "Smile2005"]
[Result "1-0"]
[WhiteElo "2521"]
[BlackElo "2385"]
[TimeControl "180+1"]
[EndTime "11:14:51 PDT"]
[Termination "Natalya_Buksa won by checkmate"]

1. d4 {[%clk 0:03:00.9]} 1... Nf6 {[%clk 0:02:59.6]} 2. Nc3 {[%clk 0:03:01.4]}
2... d5 {[%clk 0:02:59.6]} 3. Bf4 {[%clk 0:03:01.4]} 3... g6 {[%clk 0:02:59.7]}
4. e3 {[%clk 0:03:01.4]} 4... Bg7 {[%clk 0:03:00.4]} 5. h4 {[%clk 0:03:01.9]}
5... O-O {[%clk 0:03:01.3]} 6. h5 {[%clk 0:03:02.1]} 6... Nxh5 {[%clk
0:03:01.8]} 7. Rxh5 {[%clk 0:03:02.2]} 7... gxh5 {[%clk 0:03:02.7]} 8. Qxh5
{[%clk 0:03:02.4]} 8... e6 {[%clk 0:02:58.2]} 9. Bd3 {[%clk 0:03:02.1]} 9... f5
{[%clk 0:02:56.2]} 10. Nf3 {[%clk 0:03:00]} 10... Qf6 {[%clk 0:02:55.6]} 11.
O-O-O {[%clk 0:02:59.1]} 11... Qg6 {[%clk 0:02:54.3]} 12. Qh2 {[%clk 0:02:59.4]}
12... c5 {[%clk 0:02:52.8]} 13. Bxb8 {[%clk 0:02:54.1]} 13... c4 {[%clk
0:02:52.2]} 14. Be2 {[%clk 0:02:53.5]} 14... Bd7 {[%clk 0:02:46.5]} 15. Ne5
{[%clk 0:02:46.5]} 15... Bxe5 {[%clk 0:02:41.5]} 16. Bxe5 {[%clk 0:02:47.4]}
16... b5 {[%clk 0:02:41.6]} 17. Rg1 {[%clk 0:02:38]} 17... b4 {[%clk 0:02:39]}
18. Nd1 {[%clk 0:02:37.9]} 18... b3 {[%clk 0:02:35.3]} 19. axb3 {[%clk
0:02:27.9]} 19... cxb3 {[%clk 0:02:36.2]} 20. cxb3 {[%clk 0:02:28.1]} 20...
Rac8+ {[%clk 0:01:49]} 21. Nc3 {[%clk 0:02:27.5]} 21... Rc6 {[%clk 0:01:28.8]}
22. f4 {[%clk 0:02:13.4]} 22... Rfc8 {[%clk 0:01:27.4]} 23. Kd2 {[%clk
0:02:12.2]} 23... Rb6 {[%clk 0:01:22.7]} 24. g4 {[%clk 0:02:11.8]} 24... Kf8
{[%clk 0:01:11.3]} 25. gxf5 {[%clk 0:01:58.2]} 25... Qxf5 {[%clk 0:01:12.2]} 26.
Qh6+ {[%clk 0:01:49]} 26... Ke7 {[%clk 0:01:09.4]} 27. Qh4+ {[%clk 0:01:43.9]}
27... Kf8 {[%clk 0:01:06.6]} 28. Bd3 {[%clk 0:01:33.7]} 28... Qf7 {[%clk
0:00:50.8]} 29. Qh6+ {[%clk 0:01:33.1]} 29... Ke8 {[%clk 0:00:45.9]} 30. Rg7
{[%clk 0:01:33]} 30... Qf8 {[%clk 0:00:46.1]} 31. Qxh7 {[%clk 0:01:32.2]} 31...
Rxb3 {[%clk 0:00:36.8]} 32. Bg6+ {[%clk 0:01:28.4]} 32... Kd8 {[%clk 0:00:35.6]}
33. Rxd7# {[%clk 0:01:28.4]} 1-0

[Event "*** Titled Tuesday Blitz"]
[Site "Chess.com"]
[Date "2021.04.27"]
[Round "7"]
[White "andriipalchuk"]
[Black "ShahMatKanal"]
[Result "1-0"]
[WhiteElo "2582"]
[BlackElo "2418"]
[TimeControl "180+1"]
[EndTime "11:15:08 PDT"]
[Termination "andriipalchuk won by checkmate"]

1. e4 {[%clk 0:03:00.9]} 1... c6 {[%clk 0:02:59.3]} 2. d4 {[%clk 0:02:53.5]}
2... d5 {[%clk 0:03:00.2]} 3. exd5 {[%clk 0:02:54.3]} 3... cxd5 {[%clk
0:03:00.9]} 4. Bd3 {[%clk 0:02:53.5]} 4... Nc6 {[%clk 0:03:00.2]} 5. c3 {[%clk
0:02:53.4]} 5... Qc7 {[%clk 0:03:00.6]} 6. h3 {[%clk 0:02:52.5]} 6... g6 {[%clk
0:02:57.5]} 7. Ne2 {[%clk 0:02:48.8]} 7... Bh6 {[%clk 0:02:46.9]} 8. O-O {[%clk
0:02:41.6]} 8... Bxc1 {[%clk 0:02:38.9]} 9. Qxc1 {[%clk 0:02:42.5]} 9... Nf6
{[%clk 0:02:31.5]} 10. Re1 {[%clk 0:02:41.7]} 10... Bf5 {[%clk 0:02:22.5]} 11.
Bxf5 {[%clk 0:02:32]} 11... gxf5 {[%clk 0:02:23.4]} 12. Qg5 {[%clk 0:02:32.4]}
12... Qd7 {[%clk 0:02:12.2]} 13. Ng3 {[%clk 0:02:31.2]} 13... Ne4 {[%clk
0:01:58.7]} 14. Qxf5 {[%clk 0:02:30.3]} 14... Nxg3 {[%clk 0:01:56.5]} 15. Qxd7+
{[%clk 0:02:29]} 15... Kxd7 {[%clk 0:01:57.4]} 16. fxg3 {[%clk 0:02:29.5]} 16...
h5 {[%clk 0:01:58]} 17. Nd2 {[%clk 0:02:25.1]} 17... Rhg8 {[%clk 0:01:55.7]} 18.
Re3 {[%clk 0:02:22.8]} 18... Rg7 {[%clk 0:01:46.6]} 19. Rf1 {[%clk 0:02:22.1]}
19... Rag8 {[%clk 0:01:46.2]} 20. Kh2 {[%clk 0:02:06.8]} 20... e6 {[%clk
0:01:42.6]} 21. Nf3 {[%clk 0:01:16.5]} 21... f5 {[%clk 0:01:34.1]} 22. Ne1
{[%clk 0:01:11.2]} 22... h4 {[%clk 0:01:30.7]} 23. gxh4 {[%clk 0:01:10.1]} 23...
Ne7 {[%clk 0:01:16.9]} 24. g3 {[%clk 0:00:45.9]} 24... Nc8 {[%clk 0:01:16.9]}
25. Nd3 {[%clk 0:00:45.3]} 25... Nd6 {[%clk 0:01:17.3]} 26. Nc5+ {[%clk
0:00:45.4]} 26... Kc6 {[%clk 0:01:16.4]} 27. Nxe6 {[%clk 0:00:38.3]} 27... Rg6
{[%clk 0:01:15.2]} 28. Nf4 {[%clk 0:00:37.1]} 28... R6g7 {[%clk 0:01:12.9]} 29.
Rff3 {[%clk 0:00:30]} 29... Ne4 {[%clk 0:01:12.8]} 30. Nxd5 {[%clk 0:00:30.5]}
30... Kxd5 {[%clk 0:01:12.1]} 31. Rxf5+ {[%clk 0:00:30.3]} 31... Kc4 {[%clk
0:01:10.5]} 32. b3# {[%clk 0:00:30]} 1-0

[Event "*** Titled Tuesday Blitz"]
[Site "Chess.com"]
[Date "2021.04.27"]
[Round "7"]
[White "AungTZ"]
[Black "Romadk"]
[Result "0-1"]
[WhiteElo "2157"]
[BlackElo "2326"]
[TimeControl "180+1"]
[EndTime "11:15:09 PDT"]
[Termination "Romadk won on time"]

1. e4 {[%clk 0:01:49.7]} 1... Nf6 {[%clk 0:02:59.9]} 2. e5 {[%clk 0:01:49.4]}
2... Nd5 {[%clk 0:02:59.6]} 3. Nc3 {[%clk 0:01:50.3]} 3... Nxc3 {[%clk
0:02:59.7]} 4. dxc3 {[%clk 0:01:50.3]} 4... g6 {[%clk 0:03:00.6]} 5. Nf3 {[%clk
0:01:49.3]} 5... Bg7 {[%clk 0:03:01.5]} 6. Bf4 {[%clk 0:01:49.5]} 6... Nc6
{[%clk 0:03:01.9]} 7. Qd2 {[%clk 0:01:49.4]} 7... d6 {[%clk 0:03:02.8]} 8. exd6
{[%clk 0:01:48.4]} 8... cxd6 {[%clk 0:03:03.7]} 9. O-O-O {[%clk 0:01:48.3]} 9...
Bg4 {[%clk 0:03:04]} 10. Be2 {[%clk 0:01:48]} 10... Qa5 {[%clk 0:03:03.7]} 11.
Kb1 {[%clk 0:01:47]} 11... Be6 {[%clk 0:03:04.3]} 12. a3 {[%clk 0:01:44.4]}
12... O-O {[%clk 0:03:00.2]} 13. Bh6 {[%clk 0:01:41.5]} 13... Rfc8 {[%clk
0:02:57.2]} 14. Bxg7 {[%clk 0:01:39.9]} 14... Kxg7 {[%clk 0:02:58.1]} 15. Rhe1
{[%clk 0:01:37.7]} 15... Ne5 {[%clk 0:02:56.6]} 16. Nd4 {[%clk 0:01:36.8]} 16...
Bc4 {[%clk 0:02:50.6]} 17. f4 {[%clk 0:01:33.4]} 17... Bxe2 {[%clk 0:02:50]} 18.
Rxe2 {[%clk 0:01:33.3]} 18... Nc4 {[%clk 0:02:50.2]} 19. Qc1 {[%clk 0:01:30.2]}
19... Qb6 {[%clk 0:02:46.5]} 20. Nb3 {[%clk 0:01:21.9]} 20... e6 {[%clk
0:02:41.9]} 21. Ka2 {[%clk 0:01:20.7]} 21... a5 {[%clk 0:02:41.8]} 22. g4 {[%clk
0:01:18.8]} 22... a4 {[%clk 0:02:38.8]} 23. Nd4 {[%clk 0:01:18.7]} 23... Qc5
{[%clk 0:02:31.9]} 24. f5 {[%clk 0:01:15.8]} 24... e5 {[%clk 0:02:31.4]} 25. Nf3
{[%clk 0:01:12.8]} 25... Ra6 {[%clk 0:02:26.8]} 26. Ne1 {[%clk 0:00:47.1]} 26...
Rb6 {[%clk 0:02:18.7]} 27. Nd3 {[%clk 0:00:46.3]} 27... Qd5 {[%clk 0:02:17.5]}
28. Nb4 {[%clk 0:00:22.3]} 28... Qa5 {[%clk 0:02:06.3]} 29. Qg5 {[%clk
0:00:19.1]} 29... f6 {[%clk 0:02:02.9]} 30. Qc1 {[%clk 0:00:12.3]} 30... Qc5
{[%clk 0:01:59]} 31. g5 {[%clk 0:00:11.6]} 31... Na5 {[%clk 0:01:53.4]} 32.
gxf6+ {[%clk 0:00:10.3]} 32... Kxf6 {[%clk 0:01:54.3]} 33. fxg6 {[%clk
0:00:10.1]} 33... Qc4+ {[%clk 0:01:53.3]} 34. Kb1 {[%clk 0:00:06]} 34... Qxe2
{[%clk 0:01:53.4]} 35. gxh7 {[%clk 0:00:03.9]} 35... Qh5 {[%clk 0:01:47.5]} 0-1

[Event "*** Titled Tuesday Blitz"]
[Site "Chess.com"]
[Date "2021.04.27"]
[Round "7"]
[White "MerryPoppies"]
[Black "Roedor"]
[Result "0-1"]
[WhiteElo "2080"]
[BlackElo "2290"]
[TimeControl "180+1"]
[EndTime "11:15:10 PDT"]
[Termination "Roedor won by resignation"]

1. d4 {[%clk 0:03:00.9]} 1... Nf6 {[%clk 0:02:57.8]} 2. Nf3 {[%clk 0:03:00.6]}
2... g6 {[%clk 0:02:57]} 3. Bf4 {[%clk 0:03:00.5]} 3... Bg7 {[%clk 0:02:57.1]}
4. c3 {[%clk 0:03:00.8]} 4... O-O {[%clk 0:02:56.2]} 5. Nbd2 {[%clk 0:03:01.2]}
5... c5 {[%clk 0:02:56.8]} 6. e3 {[%clk 0:03:01.1]} 6... Nh5 {[%clk 0:02:52.8]}
7. Bg3 {[%clk 0:03:01.2]} 7... Nc6 {[%clk 0:02:52.3]} 8. Be2 {[%clk 0:03:00.8]}
8... d5 {[%clk 0:02:52.3]} 9. Rc1 {[%clk 0:03:00.2]} 9... Nxg3 {[%clk
0:02:48.4]} 10. hxg3 {[%clk 0:03:00.3]} 10... e5 {[%clk 0:02:47.8]} 11. dxe5
{[%clk 0:02:54.6]} 11... Nxe5 {[%clk 0:02:47.7]} 12. Nxe5 {[%clk 0:02:54.8]}
12... Bxe5 {[%clk 0:02:48.6]} 13. Nf3 {[%clk 0:02:51.2]} 13... Bg7 {[%clk
0:02:48.7]} 14. Qb3 {[%clk 0:02:35]} 14... b6 {[%clk 0:02:44.7]} 15. Rd1 {[%clk
0:02:33.9]} 15... Be6 {[%clk 0:02:43.9]} 16. Qc2 {[%clk 0:02:27.2]} 16... Rc8
{[%clk 0:02:40.5]} 17. O-O {[%clk 0:02:25.7]} 17... Qf6 {[%clk 0:02:34.5]} 18.
Bd3 {[%clk 0:01:56.4]} 18... Rfd8 {[%clk 0:02:31.5]} 19. Nd2 {[%clk 0:01:53.8]}
19... Bg4 {[%clk 0:02:29.1]} 20. f3 {[%clk 0:01:51.5]} 20... Be6 {[%clk
0:02:23]} 21. e4 {[%clk 0:01:48.2]} 21... Qg5 {[%clk 0:02:07.6]} 22. Kh2 {[%clk
0:01:38.3]} 22... c4 {[%clk 0:01:53.9]} 23. Be2 {[%clk 0:01:34.2]} 23... d4
{[%clk 0:01:50.7]} 24. cxd4 {[%clk 0:01:31.6]} 24... Bxd4 {[%clk 0:01:45.1]} 25.
g4 {[%clk 0:00:54.8]} 25... Be5+ {[%clk 0:01:42.2]} 26. Kg1 {[%clk 0:00:44.7]}
26... Bd4+ {[%clk 0:01:14.3]} 27. Rf2 {[%clk 0:00:42.3]} 27... Qe3 {[%clk
0:00:57.1]} 28. Rf1 {[%clk 0:00:37.2]} 28... Qxe2 {[%clk 0:00:56.2]} 0-1

[Event "*** Titled Tuesday Blitz"]
[Site "Chess.com"]
[Date "2021.04.27"]
[Round "7"]
[White "kidagent"]
[Black "retropwr"]
[Result "0-1"]
[WhiteElo "2336"]
[BlackElo "2251"]
[TimeControl "180+1"]
[EndTime "11:15:14 PDT"]
[Termination "retropwr won by resignation"]

1. e4 {[%clk 0:03:00.9]} 1... d6 {[%clk 0:03:00.9]} 2. d4 {[%clk 0:03:00.5]}
2... Nf6 {[%clk 0:03:01.5]} 3. Nc3 {[%clk 0:03:00.6]} 3... e5 {[%clk 0:03:02.1]}
4. dxe5 {[%clk 0:02:57.3]} 4... dxe5 {[%clk 0:03:03]} 5. Qxd8+ {[%clk
0:02:57.5]} 5... Kxd8 {[%clk 0:03:03.9]} 6. Bc4 {[%clk 0:02:56.5]} 6... Be6
{[%clk 0:03:04]} 7. Bxe6 {[%clk 0:02:55.9]} 7... fxe6 {[%clk 0:03:04.9]} 8. f3
{[%clk 0:02:56.3]} 8... Bd6 {[%clk 0:03:04.9]} 9. Be3 {[%clk 0:02:55.5]} 9...
Ke7 {[%clk 0:03:04]} 10. O-O-O {[%clk 0:02:53.7]} 10... a6 {[%clk 0:03:02.5]}
11. g4 {[%clk 0:02:51.2]} 11... Nc6 {[%clk 0:03:00]} 12. h4 {[%clk 0:02:49.3]}
12... b5 {[%clk 0:02:50.2]} 13. Nh3 {[%clk 0:02:44.6]} 13... Nd7 {[%clk
0:02:44.5]} 14. h5 {[%clk 0:02:39.7]} 14... Rhf8 {[%clk 0:02:33.9]} 15. Rhf1
{[%clk 0:02:37.1]} 15... Na5 {[%clk 0:02:20]} 16. b3 {[%clk 0:02:32.9]} 16... c5
{[%clk 0:02:17.6]} 17. Ne2 {[%clk 0:02:28.5]} 17... c4 {[%clk 0:02:13.1]} 18. f4
{[%clk 0:02:25.1]} 18... exf4 {[%clk 0:02:09.5]} 19. Bxf4 {[%clk 0:02:20.8]}
19... Bxf4+ {[%clk 0:02:03]} 20. Nhxf4 {[%clk 0:02:12.3]} 20... cxb3 {[%clk
0:02:01.5]} 21. cxb3 {[%clk 0:02:08.9]} 21... Rac8+ {[%clk 0:01:59.2]} 22. Kb2
{[%clk 0:02:09.4]} 22... Nc6 {[%clk 0:01:58.4]} 23. g5 {[%clk 0:01:50.5]} 23...
Nde5 {[%clk 0:01:57.6]} 24. g6 {[%clk 0:01:29.6]} 24... h6 {[%clk 0:01:48.6]}
25. Ng2 {[%clk 0:01:08.5]} 25... Ng4 {[%clk 0:01:43.9]} 26. Ng3 {[%clk
0:01:02.3]} 26... Nf6 {[%clk 0:01:39.3]} 27. Ne3 {[%clk 0:00:59.7]} 27... Ne5
{[%clk 0:01:35.2]} 28. Rc1 {[%clk 0:00:56]} 28... Nd3+ {[%clk 0:01:30.8]} 29.
Kb1 {[%clk 0:00:55.1]} 29... Nxc1 {[%clk 0:01:30.2]} 30. Rxc1 {[%clk 0:00:55.7]}
30... Rxc1+ {[%clk 0:01:30.2]} 31. Kxc1 {[%clk 0:00:56.6]} 31... Kd6 {[%clk
0:01:27]} 32. Kd2 {[%clk 0:00:49.1]} 32... Ke5 {[%clk 0:01:26.9]} 33. Ke2 {[%clk
0:00:45.1]} 33... Kf4 {[%clk 0:01:24.3]} 34. Kf2 {[%clk 0:00:40.4]} 34... Nxe4+
{[%clk 0:01:24]} 35. Nxe4 {[%clk 0:00:40]} 35... Kxe4+ {[%clk 0:01:24.9]} 36.
Ke2 {[%clk 0:00:40.2]} 36... Rc8 {[%clk 0:01:23.4]} 37. Ng4 {[%clk 0:00:32.2]}
37... Kf4 {[%clk 0:01:16.6]} 38. Ne3 {[%clk 0:00:30.3]} 38... Kg5 {[%clk
0:01:14.2]} 0-1

[Event "*** Titled Tuesday Blitz"]
[Site "Chess.com"]
[Date "2021.04.27"]
[Round "7"]
[White "kritipatel"]
[Black "ljuks68"]
[Result "0-1"]
[WhiteElo "1771"]
[BlackElo "2435"]
[TimeControl "180+1"]
[EndTime "11:15:14 PDT"]
[Termination "ljuks68 won by checkmate"]

1. e4 {[%clk 0:03:00.9]} 1... e6 {[%clk 0:02:59.7]} 2. d4 {[%clk 0:03:00.2]}
2... d5 {[%clk 0:03:00.1]} 3. Nc3 {[%clk 0:02:58.8]} 3... Bb4 {[%clk 0:02:59]}
4. exd5 {[%clk 0:02:57.2]} 4... exd5 {[%clk 0:02:58.5]} 5. Bd3 {[%clk
0:02:57.6]} 5... Nf6 {[%clk 0:02:58.6]} 6. a3 {[%clk 0:02:51.1]} 6... Bxc3+
{[%clk 0:02:57.9]} 7. bxc3 {[%clk 0:02:50]} 7... O-O {[%clk 0:02:58.1]} 8. f4
{[%clk 0:02:47.5]} 8... Nbd7 {[%clk 0:02:49]} 9. Nf3 {[%clk 0:02:46.7]} 9... Nb6
{[%clk 0:02:40.8]} 10. O-O {[%clk 0:02:44.6]} 10... Ne4 {[%clk 0:02:40.1]} 11.
Bxe4 {[%clk 0:02:41.2]} 11... dxe4 {[%clk 0:02:39.6]} 12. Ng5 {[%clk 0:02:41.3]}
12... Qd5 {[%clk 0:02:25]} 13. Kh1 {[%clk 0:02:28.9]} 13... h6 {[%clk
0:02:22.1]} 14. Qh5 {[%clk 0:02:21.9]} 14... hxg5 {[%clk 0:01:49.5]} 15. fxg5
{[%clk 0:02:20.3]} 15... g6 {[%clk 0:01:49.5]} 16. Qh6 {[%clk 0:02:18.2]} 16...
Bg4 {[%clk 0:01:49.5]} 17. Rf4 {[%clk 0:02:16]} 17... Bh5 {[%clk 0:01:49.3]} 18.
Be3 {[%clk 0:02:14]} 18... Nc4 {[%clk 0:01:48.6]} 19. Re1 {[%clk 0:02:11.6]}
19... Nxe3 {[%clk 0:01:09.3]} 20. Rxe3 {[%clk 0:02:10.3]} 20... Qa2 {[%clk
0:01:09.6]} 21. g4 {[%clk 0:02:01.9]} 21... Qb1+ {[%clk 0:01:08.9]} 22. Kg2
{[%clk 0:02:01.5]} 22... Qxc2+ {[%clk 0:01:08.6]} 23. Kh3 {[%clk 0:01:55.8]}
23... Rae8 {[%clk 0:00:54.7]} 24. gxh5 {[%clk 0:01:54.9]} 24... Qd2 {[%clk
0:00:52.7]} 25. hxg6 {[%clk 0:01:41.4]} 25... Qxe3+ {[%clk 0:00:52.6]} 26. Kg4
{[%clk 0:01:31.6]} 26... Qxf4+ {[%clk 0:00:50.7]} 27. Kxf4 {[%clk 0:01:31.5]}
27... fxg6+ {[%clk 0:00:50.8]} 28. Kg4 {[%clk 0:01:31.7]} 28... Re6 {[%clk
0:00:48.9]} 29. h4 {[%clk 0:01:26.5]} 29... Rf7 {[%clk 0:00:39.6]} 30. h5 {[%clk
0:01:19.9]} 30... Rh7 {[%clk 0:00:39.2]} 31. Qxg6+ {[%clk 0:01:18]} 31... Rxg6
{[%clk 0:00:38.4]} 32. hxg6 {[%clk 0:01:18.9]} 32... Re7 {[%clk 0:00:37.6]} 33.
Kh5 {[%clk 0:01:19.1]} 33... e3 {[%clk 0:00:37.2]} 34. Kh6 {[%clk 0:01:19]}
34... e2 {[%clk 0:00:36.8]} 35. d5 {[%clk 0:01:17.7]} 35... e1=Q {[%clk
0:00:36.6]} 36. d6 {[%clk 0:01:18.2]} 36... Qh4# {[%clk 0:00:36.5]} 0-1

[Event "*** Titled Tuesday Blitz"]
[Site "Chess.com"]
[Date "2021.04.27"]
[Round "7"]
[White "chess94cu"]
[Black "volkanyirik"]
[Result "1-0"]
[WhiteElo "2577"]
[BlackElo "2418"]
[TimeControl "180+1"]
[EndTime "11:15:17 PDT"]
[Termination "chess94cu won by resignation"]

1. d4 {[%clk 0:03:00.9]} 1... Nf6 {[%clk 0:02:58.9]} 2. Bf4 {[%clk 0:02:51.2]}
2... g6 {[%clk 0:02:58.4]} 3. Nc3 {[%clk 0:02:44.9]} 3... c5 {[%clk 0:02:56.7]}
4. d5 {[%clk 0:02:38.5]} 4... d6 {[%clk 0:02:56.6]} 5. e4 {[%clk 0:02:38.1]}
5... a6 {[%clk 0:02:56.9]} 6. a4 {[%clk 0:02:37.4]} 6... Bg7 {[%clk 0:02:56.9]}
7. Qd2 {[%clk 0:02:36.7]} 7... Nh5 {[%clk 0:02:53]} 8. Bh6 {[%clk 0:02:34.8]}
8... Bxh6 {[%clk 0:02:43.1]} 9. Qxh6 {[%clk 0:02:35.7]} 9... Nd7 {[%clk
0:02:43]} 10. Nf3 {[%clk 0:02:33.7]} 10... Qa5 {[%clk 0:02:38.3]} 11. Be2 {[%clk
0:02:23.2]} 11... b5 {[%clk 0:02:34.5]} 12. O-O {[%clk 0:02:12.9]} 12... b4
{[%clk 0:02:34.7]} 13. Nd1 {[%clk 0:02:12.2]} 13... Ndf6 {[%clk 0:02:07.5]} 14.
Nd2 {[%clk 0:01:57.7]} 14... Bd7 {[%clk 0:01:44.3]} 15. Ne3 {[%clk 0:01:54.7]}
15... Ng8 {[%clk 0:01:37]} 16. Qg5 {[%clk 0:01:52.4]} 16... O-O-O {[%clk
0:01:33]} 17. Bxh5 {[%clk 0:01:47.4]} 17... gxh5 {[%clk 0:01:30.4]} 18. Qxh5
{[%clk 0:01:47.2]} 18... Be8 {[%clk 0:01:27.5]} 19. Ndc4 {[%clk 0:01:42.2]}
19... Qc7 {[%clk 0:01:27.1]} 20. a5 {[%clk 0:01:39.9]} 20... Nf6 {[%clk
0:01:27.4]} 21. Qh4 {[%clk 0:01:38.6]} 21... Kb8 {[%clk 0:01:27.9]} 22. e5
{[%clk 0:01:31.7]} 22... dxe5 {[%clk 0:01:25.1]} 23. d6 {[%clk 0:01:31.9]} 23...
Qc6 {[%clk 0:01:16]} 24. dxe7 {[%clk 0:01:29.1]} 24... Rd4 {[%clk 0:01:15.1]}
25. Qg3 {[%clk 0:01:24.5]} 25... Rf4 {[%clk 0:01:06.2]} 26. Nxe5 {[%clk
0:01:22.3]} 26... Qc7 {[%clk 0:01:06.3]} 27. Nd3 {[%clk 0:01:17]} 27... Re4
{[%clk 0:00:30.7]} 28. Qxc7+ {[%clk 0:01:09.6]} 28... Kxc7 {[%clk 0:00:31.6]}
29. Nxc5 {[%clk 0:01:10]} 29... Rxe7 {[%clk 0:00:31.3]} 30. Nxa6+ {[%clk
0:01:10.6]} 30... Kb7 {[%clk 0:00:31.6]} 31. Nxb4 {[%clk 0:01:11.2]} 31... Ka7
{[%clk 0:00:32.1]} 32. Rfd1 {[%clk 0:01:07.2]} 32... Bb5 {[%clk 0:00:31.2]} 1-0